bitfinex-derivatives/quotes_BTCF0:USTF0_20260119
["timestamp","ask_amount","ask_price","bid_price","bid_amount"]
[1768813288608,0.010725,93287.0,93260.0,0.14386845]
[1768813288815,0.14370764,93270.0,93261.0,0.33328]
[1768813289014,0.010726,93276.0,93261.0,0.33328]
[1768813289218,0.00943083,93275.0,93261.0,0.33328]
[1768813289719,0.00943083,93275.0,93262.0,0.010728]
[1768813289922,0.010724,93292.0,93262.0,0.010728]
[1768813289923,0.00943083,93283.0,93262.0,0.0094829]
[1768813290227,0.01308339,93284.0,93262.0,0.0094829]
[1768813290530,0.01308339,93284.0,93267.0,0.0094829]
[1768813291212,0.00235839,93284.0,93268.0,0.010727]
[1768813291411,0.00235839,93284.0,93270.0,0.010727]
[1768813291616,0.00235839,93284.0,93272.0,0.010727]
[1768813291819,0.00235839,93284.0,93261.0,0.33328]
[1768813291820,0.00235839,93284.0,93274.0,0.0094829]
[1768813292016,0.00798018,93294.0,93276.0,0.0094829]
[1768813292214,0.00943083,93296.0,93277.0,0.09656]
[1768813292418,0.010725,93290.0,93277.0,0.09656]
[1768813293425,0.00943083,93296.0,93277.0,0.09656]
[1768813293716,0.010724,93293.0,93277.0,0.09656]
[1768813295531,0.010724,93293.0,93278.0,0.0094829]
[1768813295720,0.00943083,93302.0,93278.0,0.0094829]
[1768813295926,0.00943083,93300.0,93278.0,0.0094829]
[1768813296125,0.00943083,93298.0,93278.0,0.0094829]
[1768813296330,0.00943083,93296.0,93278.0,0.0094829]
[1768813296537,0.00943083,93296.0,93280.0,0.00016081]
[1768813296726,0.010724,93294.0,93280.0,0.00016081]
[1768813297118,0.00943083,93296.0,93280.0,0.00016081]
[1768813297626,0.00943083,93286.0,93234.0,0.010731]
[1768813297822,0.00943083,93286.0,93255.0,0.01088781]
[1768813298018,0.00943083,93286.0,93262.0,0.01088781]
[1768813298218,0.00938157,93291.0,93262.0,0.01088781]
[1768813298219,0.00943083,93284.0,93262.0,0.01088781]
[1768813298418,0.00943083,93284.0,93264.0,0.01088781]
[1768813298621,0.00943083,93284.0,93265.0,0.09656]
[1768813298830,0.00943083,93284.0,93266.0,0.010727]
[1768813299030,0.00943083,93284.0,93267.0,0.64684]
[1768813299239,0.00959164,93284.0,93270.0,0.01088781]
[1768813299424,0.00959164,93284.0,93272.0,0.01088781]
[1768813299620,0.00959164,93284.0,93273.0,0.01088781]
[1768813299819,0.00959164,93284.0,93271.0,0.01088781]
[1768813300430,0.00992843,93283.0,93272.0,0.01088781]
[1768813300727,0.00992843,93280.0,93270.0,0.01088781]
[1768813301027,0.00992843,93280.0,93251.0,0.00963312]
[1768813301028,0.010728,93264.0,93251.0,0.00963312]
[1768813301234,0.00992843,93269.0,93252.0,1.10695312]
[1768813301438,0.00992843,93269.0,93262.0,0.01088781]
[1768813301736,0.00992843,93269.0,93253.0,0.02036212]
[1768813302031,0.00992843,93261.0,93254.0,0.09656]
[1768813304028,0.010728,93260.0,93254.0,0.09656]
[1768813304424,0.00992843,93260.0,93254.0,0.09656]
[1768813304631,0.00992843,93260.0,93246.0,0.00963312]
[1768813304823,0.010728,93259.0,93247.0,0.22548]
[1768813305024,0.02065743,93253.0,93243.0,0.54744]
[1768813305230,0.010729,93251.0,93239.0,1.2328]
[1768813305425,0.17955451,93250.0,93225.0,0.00963312]
[1768813305735,0.01073,93247.0,93227.0,0.09656]
[1768813306030,0.010729,93251.0,93231.0,0.010731]
[1768813306237,0.0095111,93262.0,93234.0,0.00963312]
[1768813306423,0.010728,93261.0,93243.0,0.00963312]
[1768813306629,0.00016081,93262.0,93245.0,0.00963312]
[1768813307234,0.00016081,93262.0,93246.0,0.00963312]
[1768813307437,0.010727,93270.0,93252.0,0.00963312]
[1768813307635,0.02065543,93267.0,93252.0,0.00963312]
[1768813307938,0.02065543,93267.0,93248.0,0.010729]
[1768813307939,0.00992843,93266.0,93248.0,0.010729]
[1768813308932,0.00992843,93266.0,93247.0,0.00963312]
[1768813309137,0.02065443,93276.0,93258.0,0.00963312]
[1768813309337,0.02065543,93274.0,93259.0,0.09656]
[1768813309535,0.00992843,93273.0,93259.0,0.09656]
[1768813313740,0.00992843,93273.0,93259.0,0.09420071]
[1768813314731,0.00929479,93261.0,93260.0,0.09656]
[1768813315137,0.010727,93269.0,93260.0,0.09656]
[1768813316145,0.010727,93267.0,93260.0,0.09656]
[1768813317140,0.00929479,93269.0,93260.0,0.09656]
[1768813317942,0.00929479,93269.0,93251.0,0.02062232]
[1768813318247,0.010728,93265.0,93252.0,0.09656]
[1768813318845,0.010728,93265.0,93252.0,0.10645332]
[1768813319452,0.010728,93263.0,93252.0,0.10645332]
[1768813319638,0.010727,93268.0,93253.0,0.010729]
[1768813319835,0.01088681,93275.0,93257.0,0.00989332]
[1768813320039,0.00016081,93275.0,93257.0,0.00989332]
[1768813321437,0.010727,93271.0,93257.0,0.00989332]
[1768813321637,0.010727,93269.0,93257.0,0.00989332]
[1768813322449,0.010727,93271.0,93257.0,0.00989332]
[1768813323954,0.02631133,93270.0,93252.0,0.04718232]
[1768813324147,0.02631133,93269.0,93252.0,0.04718232]
[1768813324445,0.00929479,93266.0,93233.0,0.010731]
[1768813324752,0.00957774,93275.0,93234.0,0.34311888]
[1768813324753,0.010729,93257.0,93234.0,0.34311888]
[1768813324952,0.010729,93257.0,93235.0,0.09656]
[1768813325149,0.00929479,93261.0,93245.0,0.01073]
[1768813325358,0.00929479,93261.0,93246.0,0.09656]
[1768813325653,0.010728,93263.0,93246.0,0.09656]
[1768813325945,0.010727,93271.0,93255.0,0.010729]
[1768813326157,0.010727,93267.0,93246.0,0.09656]
[1768813327148,0.010727,93267.0,93247.0,0.00016081]
[1768813327449,0.00929479,93265.0,93248.0,0.35824]
[1768813327759,0.010728,93260.0,93249.0,0.09656]
[1768813328055,0.010727,93273.0,93247.0,0.00016081]
[1768813328056,0.00929479,93258.0,93247.0,0.00016081]
[1768813328256,0.02002279,93258.0,93248.0,0.09656]
[1768813328549,0.00929479,93258.0,93249.0,0.09656]
[1768813328950,0.010729,93256.0,93249.0,0.09656]
[1768813329253,0.00929479,93247.0,93245.0,0.09656]
[1768813329454,0.00941693,93255.0,93246.0,0.09656]
[1768813329651,0.01073,93245.0,93235.0,0.00016162]
[1768813329950,0.01073,93245.0,93220.0,0.015]
[1768813329951,0.00929479,93241.0,93236.0,0.09656]
[1768813330152,0.00941693,93252.0,93235.0,0.09656]
[1768813330153,0.00929479,93237.0,93235.0,0.09656]
[1768813330346,0.00929479,93237.0,93220.0,0.31032]
[1768813330347,0.010731,93235.0,93220.0,0.015]
[1768813330549,0.010731,93233.0,93221.0,0.09656]
[1768813330855,0.02002579,93236.0,93221.0,0.09656]
[1768813331547,0.010731,93234.0,93221.0,0.09656]
[1768813331752,0.00016081,93245.0,93222.0,0.09656]
[1768813331753,0.00929479,93231.0,93222.0,0.09656]
[1768813332053,0.010732,93230.0,93222.0,0.09656]
[1768813332846,0.010732,93230.0,93220.0,0.015]
[1768813333053,0.010732,93227.0,93220.0,0.015]
[1768813333252,0.00929479,93224.0,93209.0,0.0023603]
[1768813334249,0.0001609,93226.0,93210.0,0.010734]
[1768813334451,0.0001609,93226.0,93215.0,0.010733]
[1768813334654,0.010731,93236.0,93216.0,0.09656]
[1768813334853,0.010731,93233.0,93216.0,0.09656]
[1768813335055,0.00929479,93236.0,93217.0,0.010733]
[1768813335455,0.010731,93235.0,93216.0,0.09656]
[1768813335655,0.00929479,93236.0,93217.0,0.010733]
[1768813335854,0.00929479,93236.0,93216.0,0.09656]
[1768813336053,0.00929479,93244.0,93216.0,0.09656]
[1768813336252,0.00929479,93244.0,93233.0,0.010731]
[1768813338860,0.00929479,93244.0,93230.0,0.010732]
[1768813339357,0.00929479,93244.0,93229.0,0.09891979]
[1768813340259,0.00929479,93244.0,93229.0,0.02891979]
[1768813340964,0.00929479,93242.0,93229.0,0.02891979]
[1768813345255,0.02002479,93242.0,93229.0,0.02891979]
[1768813345463,0.00929479,93242.0,93229.0,0.02891979]
[1768813345661,0.010731,93238.0,93229.0,0.02891979]
[1768813345862,0.02049402,93238.0,93229.0,0.02891979]
[1768813346065,0.02049402,93236.0,93229.0,0.02891979]
[1768813346262,0.00976302,93233.0,93229.0,7.9e-07]
[1768813346563,0.00976302,93233.0,93230.0,0.09656]
[1768813347465,0.00976302,93233.0,93229.0,7.9e-07]
[1768813347658,0.00976302,93233.0,93230.0,0.0966]
[1768813347961,0.00976302,93233.0,93221.0,0.0001609]
[1768813348163,0.00976302,93233.0,93222.0,0.0966]
[1768813351261,0.02049402,93233.0,93223.0,0.0966]
[1768813351670,0.00976302,93232.0,93223.0,0.0966]
[1768813352459,0.00976302,93232.0,93224.0,0.00235991]
[1768813353881,0.00976302,93229.0,93225.0,0.0966]
[1768813354060,0.00976302,93229.0,93224.0,0.00235991]
[1768813354374,0.00976302,93225.0,93220.0,0.0803134]
[1768813354559,0.00976302,93225.0,93212.0,0.010734]
[1768813354760,0.00976302,93225.0,93213.0,0.107333]
[1768813354957,0.00976302,93225.0,93213.0,0.010733]
[1768813355157,0.00976302,93225.0,93214.0,0.0966]
[1768813356068,0.00976302,93225.0,93206.0,0.010734]
[1768813356268,0.010732,93223.0,93210.0,0.0966]
[1768813356571,0.00976302,93218.0,93211.0,0.0966]
[1768813357272,0.00976302,93218.0,93210.0,0.0966]
[1768813358065,0.010731,93235.0,93210.0,0.0966]
[1768813358066,0.0098846,93235.0,93210.0,0.0966]
[1768813358263,0.010732,93229.0,93213.0,0.010733]
[1768813358463,0.010732,93227.0,93210.0,0.107334]
[1768813358669,0.02673906,93226.0,93210.0,0.107334]
[1768813359367,0.02673906,93226.0,93212.0,0.010734]
[1768813359672,0.02675282,93225.0,93210.0,0.0966]
[1768813359870,0.010732,93228.0,93210.0,0.0966]
[1768813360070,0.010732,93226.0,93210.0,0.0966]
[1768813360261,0.01883493,93217.0,93209.0,3e-07]
[1768813360460,0.00972501,93210.0,93203.0,0.01387971]
[1768813360765,0.02045801,93217.0,93199.0,0.107335]
[1768813360961,0.00972501,93205.0,93170.0,0.010738]
[1768813361265,0.010734,93213.0,93192.0,0.010736]
[1768813361573,8.527e-05,93212.0,93192.0,0.010736]
[1768813361768,0.010734,93211.0,93192.0,0.010736]
[1768813362158,0.010734,93211.0,93190.0,0.0966]
[1768813362159,8.527e-05,93212.0,93200.0,0.010735]
[1768813362360,8.527e-05,93212.0,93197.0,0.010735]
[1768813363772,8.527e-05,93212.0,93200.0,0.010735]
[1768813363972,0.02672701,93211.0,93201.0,0.0966]
[1768813364174,8.527e-05,93212.0,93201.0,0.0966]
[1768813364175,0.02672701,93210.0,93201.0,0.0966]
[1768813364375,8.527e-05,93212.0,93201.0,0.0966]
[1768813364667,0.02672078,93211.0,93201.0,0.0966]
[1768813364871,0.010734,93209.0,93201.0,0.0966]
[1768813365068,0.02672078,93208.0,93201.0,0.0966]
[1768813365263,0.00972501,93209.0,93191.0,0.010736]
[1768813365574,0.00972501,93207.0,93192.0,0.0966]
[1768813366469,0.00972501,93204.0,93193.0,0.0966]
[1768813366972,0.00972501,93204.0,93189.0,0.01643405]
[1768813367174,0.00972501,93204.0,93190.0,0.0966]
[1768813367370,0.00972501,93204.0,93190.0,0.107336]
[1768813367571,0.00972501,93204.0,93190.0,0.0966]
[1768813368370,0.00972501,93204.0,93190.0,0.010736]
[1768813368575,0.00972501,93204.0,93194.0,0.010736]
[1768813368877,8.527e-05,93212.0,93191.0,0.0966]
[1768813368878,0.00972501,93209.0,93191.0,0.0966]
[1768813369072,0.02670386,93208.0,93200.0,0.010735]
[1768813369266,8.527e-05,93212.0,93200.0,0.010735]
[1768813369572,0.02659134,93211.0,93197.0,0.010735]
[1768813369766,0.02659134,93210.0,93197.0,0.010735]
[1768813369972,8.527e-05,93212.0,93191.0,0.0966]
[1768813370175,0.02659134,93211.0,93191.0,0.0966]
[1768813370373,0.02659134,93210.0,93191.0,0.0966]
[1768813370672,8.527e-05,93212.0,93191.0,0.0966]
[1768813370875,0.14381969,93210.0,93191.0,0.0966]
[1768813371271,0.0265934,93209.0,93191.0,0.0966]
[1768813371472,0.14381969,93210.0,93197.0,0.010735]
[1768813371671,0.0265934,93209.0,93197.0,0.010735]
[1768813371868,0.14381969,93210.0,93191.0,0.0966]
[1768813372072,0.0265934,93209.0,93191.0,0.0966]
[1768813372377,0.14381969,93210.0,93198.0,0.010735]
[1768813372674,0.02659612,93209.0,93198.0,0.010735]
[1768813372865,0.14381969,93210.0,93198.0,0.010735]
[1768813373066,0.02659612,93209.0,93198.0,0.010735]
[1768813373261,0.14381969,93210.0,93198.0,0.010735]
[1768813373467,0.02660016,93209.0,93198.0,0.010735]
[1768813373673,0.14381969,93210.0,93198.0,0.010735]
[1768813376269,0.14381969,93210.0,93199.0,0.0966]
[1768813377980,0.010734,93206.0,93199.0,0.0966]
[1768813378281,0.010734,93206.0,93200.0,0.0966]
[1768813378474,0.010734,93206.0,93189.0,0.02717005]
[1768813378674,0.14381969,93200.0,93190.0,0.0966]
[1768813379277,0.010734,93206.0,93190.0,0.0966]
[1768813379576,0.14381969,93200.0,93189.0,0.02717005]
[1768813379776,0.14381969,93200.0,93190.0,0.0966]
[1768813380580,0.14381969,93200.0,93189.0,0.01643405]
[1768813380779,0.00913335,93196.0,93189.0,0.00236081]
[1768813385080,0.00913335,93194.0,93189.0,0.00236081]
[1768813387175,0.00913335,93194.0,93186.0,0.0966]
[1768813387886,0.00913335,93190.0,93184.0,0.00236092]
[1768813388078,0.00913335,93188.0,93185.0,0.0966]
[1768813388782,0.00913335,93188.0,93184.0,0.00236092]
[1768813388983,8.527e-05,93189.0,93185.0,0.0266]
[1768813389378,8.527e-05,93189.0,93184.0,0.09900092]
[1768813389983,0.010736,93188.0,93184.0,9.2e-07]
[1768813390179,0.010736,93188.0,93177.0,0.01359002]
[1768813390490,8.527e-05,93189.0,93178.0,0.09664]
[1768813391875,0.0001609,93196.0,93184.0,0.0188363]
[1768813392079,0.0001609,93196.0,93185.0,0.00954661]
[1768813392584,0.0001609,93196.0,93183.0,0.010737]
[1768813392785,9e-07,93196.0,93181.0,0.0188363]
[1768813392982,0.01891935,93215.0,93191.0,0.00954661]
[1768813393185,0.01891935,93215.0,93196.0,0.00954661]
[1768813393186,0.010734,93212.0,93196.0,0.00954661]
[1768813393390,0.14381969,93210.0,93196.0,0.00954661]
[1768813393582,0.010734,93212.0,93196.0,0.00954661]
[1768813393777,0.14381969,93210.0,93196.0,0.00954661]
[1768813393978,0.010733,93220.0,93204.0,0.00954661]
[1768813394185,0.010733,93217.0,93204.0,0.09664]
[1768813394382,0.14381969,93214.0,93204.0,0.09664]
[1768813394885,0.010734,93212.0,93204.0,0.09664]
[1768813395077,0.010734,93213.0,93204.0,0.09664]
[1768813397182,0.00913335,93188.0,93164.0,0.01190804]
[1768813397480,0.14381969,93190.0,93172.0,0.19338661]
[1768813397682,0.010736,93189.0,93173.0,0.00954661]
[1768813398078,0.010737,93187.0,93173.0,0.00954661]
[1768813398282,0.15455569,93190.0,93173.0,0.00954661]
[1768813398586,0.15471659,93190.0,93173.0,0.00954661]
[1768813399087,0.0108969,93190.0,93174.0,1.02230661]
[1768813399288,0.0108969,93190.0,93174.0,1.11894661]
[1768813399790,0.0001609,93190.0,93175.0,1.33296]
[1768813400797,0.010735,93197.0,93177.0,0.00954661]
[1768813400988,0.010736,93193.0,93177.0,0.00954661]
[1768813401188,0.010735,93199.0,93179.0,0.00954661]
[1768813401490,0.010735,93197.0,93179.0,0.00954661]
[1768813402187,0.19060202,93220.0,93194.0,0.00954661]
[1768813402188,0.0130943,93209.0,93194.0,0.00954661]
[1768813402377,0.0023603,93209.0,93195.0,0.10618661]
[1768813402582,0.0023603,93209.0,93196.0,0.99848]
[1768813403192,0.010734,93208.0,93196.0,0.99848]
[1768813403996,0.0023603,93209.0,93181.0,0.00925634]
[1768813403997,0.01922611,93206.0,93181.0,0.00925634]
[1768813404296,0.010735,93199.0,93182.0,1.31008]
[1768813404485,0.0256592,93198.0,93182.0,1.31008]
[1768813404681,0.0256592,93198.0,93183.0,0.010737]
[1768813404897,0.0256592,93197.0,93184.0,1.23636]
[1768813405095,0.0256592,93196.0,93184.0,1.333]
[1768813405297,0.0256592,93195.0,93183.0,0.010737]
[1768813405498,0.0256592,93194.0,93184.0,1.333]
[1768813405696,0.0256592,93193.0,93184.0,1.333]
[1768813405899,0.0256592,93192.0,93183.0,0.010737]
[1768813406191,0.010735,93200.0,93183.0,0.010737]
[1768813406396,0.0095436,93197.0,93184.0,0.36372]
[1768813406596,0.02566793,93196.0,93185.0,0.09664]
[1768813406785,0.02566793,93196.0,93188.0,0.010736]
[1768813406987,0.00566793,93195.0,93186.0,0.00925634]
[1768813407182,0.010735,93203.0,93185.0,0.107377]
[1768813407397,0.0202786,93203.0,93185.0,0.107377]
[1768813407794,0.010735,93200.0,93185.0,0.09664]
[1768813408701,0.010735,93200.0,93183.0,0.010737]
[1768813408899,0.010735,93200.0,93184.0,0.71984]
[1768813409201,0.010734,93208.0,93193.0,0.00229886]
[1768813409397,0.010734,93208.0,93184.0,0.71984]
[1768813409801,0.0119039,93209.0,93191.0,0.010736]
[1768813410598,0.0119039,93209.0,93193.0,0.010736]
[1768813411194,0.0226379,93209.0,93190.0,0.010736]
[1768813411394,0.0095436,93208.0,93190.0,0.010736]
[1768813412203,0.0095436,93208.0,93191.0,1.06896]
[1768813412404,0.0095436,93208.0,93192.0,0.010736]
[1768813414200,0.0095436,93208.0,93191.0,1.06896]
[1768813414500,0.0120423,93229.0,93202.0,0.00712077]
[1768813414694,0.02041451,93225.0,93207.0,0.010734]
[1768813414900,0.00968251,93224.0,93209.0,0.010734]
[1768813415098,0.00968251,93224.0,93210.0,0.09664]
[1768813416400,0.0095436,93222.0,93210.0,0.09664]
[1768813417410,0.0095436,93222.0,93210.0,0.107374]
[1768813418304,0.0095436,93222.0,93210.0,0.09664]
[1768813419097,0.03385919,93221.0,93210.0,0.09664]
[1768813419309,0.02431559,93220.0,93210.0,0.09664]
[1768813419609,0.02431559,93219.0,93210.0,0.09664]
[1768813419808,0.0095436,93221.0,93210.0,0.09664]
[1768813420011,0.00912059,93219.0,93210.0,0.09664]
[1768813420400,0.03343453,93218.0,93210.0,0.09664]
[1768813420610,0.00912059,93218.0,93210.0,0.09664]
[1768813420807,0.00912059,93218.0,93208.0,0.0001609]
[1768813421011,0.01985359,93218.0,93209.0,0.77744]
[1768813422307,0.01985359,93216.0,93210.0,1.07152]
[1768813422508,0.00912059,93215.0,93211.0,0.08664]
[1768813423018,0.010733,93214.0,93209.0,0.32612]
[1768813423316,0.00912059,93214.0,93210.0,0.0966]
[1768813423513,0.00912059,93214.0,93211.0,0.0966]
[1768813423708,0.00912059,93214.0,93198.0,0.00921896]
[1768813423911,0.14383018,93210.0,93190.0,0.00722481]
[1768813424112,0.14383018,93210.0,93196.0,0.010735]
[1768813424609,0.14383018,93210.0,93198.0,0.010735]
[1768813425015,0.14383018,93210.0,93199.0,1.20708]
[1768813425515,0.14383018,93210.0,93200.0,1.23652]
[1768813425714,0.14383018,93210.0,93200.0,1.33312]
[1768813426711,0.14383018,93210.0,93201.0,1.3332]
[1768813427015,0.00912059,93214.0,93201.0,1.3332]
[1768813427319,0.14383018,93211.0,93202.0,1.3332]
[1768813427514,0.14383018,93212.0,93202.0,1.3332]
[1768813427704,0.0243106,93211.0,93202.0,1.3332]
[1768813427902,0.14383018,93212.0,93202.0,1.3332]
[1768813428106,0.02431071,93211.0,93202.0,1.3332]
[1768813428316,0.14383018,93212.0,93202.0,1.3332]
[1768813428616,0.02431272,93211.0,93202.0,1.3332]
[1768813428816,0.14383018,93212.0,93202.0,1.3332]
[1768813429115,0.0243126,93211.0,93202.0,1.3332]
[1768813429318,0.14383018,93212.0,93202.0,1.3332]
[1768813429518,0.02431613,93211.0,93202.0,1.3332]
[1768813429714,0.02431613,93210.0,93202.0,1.3332]
[1768813430016,0.14383018,93212.0,93202.0,1.3332]
[1768813430319,0.02431625,93211.0,93202.0,1.3332]
[1768813430620,0.02431625,93210.0,93203.0,1.2368]
[1768813430919,0.02431625,93209.0,93204.0,1.3334]
[1768813431114,0.02431625,93208.0,93204.0,1.3334]
[1768813431315,0.02431625,93207.0,93205.0,1.33344]
[1768813431620,0.02431625,93206.0,93205.0,1.33344]
[1768813431815,0.010734,93213.0,93205.0,1.23688]
[1768813432018,0.010734,93213.0,93206.0,0.0966]
[1768813432222,0.010734,93213.0,93206.0,0.0266]
[1768813432408,0.010734,93211.0,93198.0,0.00921896]
[1768813432912,0.010734,93209.0,93199.0,0.10308]
[1768813433113,0.010734,93209.0,93200.0,0.0966]
[1768813434011,0.010734,93209.0,93194.0,0.010736]
[1768813434213,0.00912601,93208.0,93190.0,0.00925271]
[1768813434414,0.00912601,93208.0,93191.0,0.2462]
[1768813434614,0.010735,93205.0,93191.0,0.256936]
[1768813434806,0.01986001,93207.0,93192.0,0.59484]
[1768813435022,0.01986001,93207.0,93193.0,0.0966]
[1768813435223,0.01889985,93213.0,93196.0,0.010735]
[1768813435531,0.010734,93212.0,93196.0,0.00925271]
[1768813436216,0.010734,93212.0,93197.0,0.01998771]
[1768813436415,0.010734,93212.0,93197.0,0.00925271]
[1768813437625,0.010734,93210.0,93197.0,0.00925271]
[1768813437820,0.010733,93214.0,93200.0,0.00925271]
[1768813438020,0.00912601,93219.0,93200.0,0.00925271]
[1768813438021,0.010733,93217.0,93203.0,0.00925271]
[1768813438221,0.010733,93214.0,93205.0,0.00925271]
[1768813438422,0.010734,93212.0,93206.0,0.0966]
[1768813438724,0.010734,93212.0,93207.0,0.0966]
[1768813438924,0.010734,93212.0,93196.0,0.010735]
[1768813438925,0.010734,93212.0,93208.0,0.0966]
[1768813439428,0.010734,93212.0,93209.0,0.0966]
[1768813439626,0.010734,93212.0,93210.0,0.0966]
[1768813439923,0.010734,93212.0,93211.0,0.0966]
[1768813440421,0.010734,93210.0,93204.0,0.46984]
[1768813440621,0.010734,93210.0,93205.0,0.0966]
[1768813441825,0.010734,93210.0,93195.0,0.010736]
[1768813442022,0.010734,93208.0,93196.0,0.91564]
[1768813443629,0.010734,93208.0,93194.0,0.010736]
[1768813443829,0.010734,93208.0,93193.0,0.00732812]
[1768813444030,0.02424866,93207.0,93195.0,0.09356]
[1768813444230,0.02424866,93206.0,93195.0,0.09356]
[1768813444531,0.02424866,93205.0,93195.0,0.09356]
[1768813444826,0.02424866,93204.0,93195.0,0.09356]
[1768813445129,0.02424866,93203.0,93196.0,0.58432]
[1768813445324,0.02424866,93202.0,93196.0,0.58432]
[1768813445525,0.010734,93208.0,93196.0,0.58432]
[1768813445725,0.02421454,93207.0,93196.0,0.58432]
[1768813446024,0.010735,93204.0,93197.0,0.968]
[1768813446224,0.02421454,93203.0,93198.0,0.0966]
[1768813446529,0.010734,93205.0,93199.0,0.0966]
[1768813446726,0.00912601,93209.0,93200.0,0.0966]
[1768813446727,0.010735,93202.0,93200.0,0.0966]
[1768813446929,0.01986001,93205.0,93201.0,0.0966]
[1768813447126,0.00912601,93205.0,93192.0,1.23688]
[1768813447335,0.010735,93203.0,93193.0,0.0966]
[1768813451131,0.00912601,93210.0,93193.0,0.0966]
[1768813451320,0.00912601,93210.0,93194.0,1.23716]
[1768813451523,0.00912601,93210.0,93194.0,1.33376]
[1768813451720,0.010735,93203.0,93195.0,1.3338]
[1768813452321,0.010734,93206.0,93195.0,1.3338]
[1768813453226,0.010735,93204.0,93196.0,0.0966]
[1768813453426,0.010734,93205.0,93196.0,0.0966]
[1768813454322,0.010735,93203.0,93197.0,0.0966]
[1768813454528,0.00912601,93208.0,93197.0,0.0966]
[1768813455637,0.010735,93202.0,93197.0,0.0966]
[1768813456838,0.010735,93202.0,93198.0,0.0966]
[1768813457039,0.010735,93202.0,93199.0,0.0966]
[1768813457235,0.00912601,93208.0,93190.0,6.188e-05]
[1768813457438,0.010736,93188.0,93175.0,0.010738]
[1768813457637,0.00667623,93191.0,93185.0,0.52568]
[1768813457830,0.00912601,93206.0,93186.0,0.09664]
[1768813458038,0.00912601,93217.0,93192.0,0.00730102]
[1768813458234,0.00912601,93217.0,93186.0,0.09664]
[1768813458235,0.010732,93223.0,93198.0,0.00730102]
[1768813458438,0.010732,93223.0,93200.0,0.00730102]
[1768813458439,0.02410978,93222.0,93200.0,0.00730102]
[1768813458635,0.02410978,93221.0,93201.0,0.09664]
[1768813458839,0.107372,93230.0,93201.0,0.09664]
[1768813458840,0.010733,93219.0,93201.0,0.09664]
[1768813459042,0.02410978,93218.0,93202.0,4.107e-05]
[1768813459241,0.02410978,93217.0,93203.0,7.182e-05]
[1768813459434,0.02410978,93216.0,93203.0,7.182e-05]
[1768813459634,0.02410978,93215.0,93203.0,7.182e-05]
[1768813459841,0.02410978,93214.0,93203.0,7.182e-05]
[1768813460041,0.02410978,93213.0,93203.0,7.182e-05]
[1768813460242,0.02410978,93212.0,93203.0,7.182e-05]
[1768813460439,0.02410978,93211.0,93203.0,7.182e-05]
[1768813460740,0.86203745,93250.0,93202.0,4.107e-05]
[1768813460741,7.9e-07,93229.0,93225.0,4.107e-05]
[1768813460944,0.0023594,93244.0,93228.0,7.182e-05]
[1768813461441,0.0130894,93244.0,93228.0,7.182e-05]
[1768813461745,0.01073,93242.0,93228.0,7.182e-05]
[1768813462044,0.01148541,93244.0,93228.0,7.182e-05]
[1768813462645,0.02221541,93244.0,93228.0,7.182e-05]
[1768813463238,0.02221541,93244.0,93227.0,0.0001609]
[1768813463239,0.00900436,93243.0,93229.0,6.473e-05]
[1768813463442,0.01073,93242.0,93229.0,6.473e-05]
[1768813463646,0.01073,93242.0,93227.0,0.0001609]
[1768813464239,0.00900436,93243.0,93227.0,0.0001609]
[1768813465947,0.00900436,93243.0,93228.0,0.010732]
[1768813466138,0.0023594,93244.0,93233.0,0.010731]
[1768813466640,0.0023594,93244.0,93230.0,0.010732]
[1768813467047,0.0023594,93244.0,93232.0,0.010731]
[1768813467750,0.0023594,93244.0,93232.0,0.02487327]
[1768813467946,0.0023594,93244.0,93233.0,0.0966]
[1768813468149,0.0023594,93244.0,93234.0,0.010731]
[1768813468357,0.00235929,93249.0,93233.0,0.107331]
[1768813468658,0.00235929,93249.0,93233.0,0.0966]
[1768813468860,0.00900436,93263.0,93240.0,0.01073]
[1768813469354,0.010728,93260.0,93237.0,0.010731]
[1768813469556,0.010728,93260.0,93239.0,0.01073]
[1768813470063,0.00900436,93263.0,93245.0,0.00836959]
[1768813470356,0.00900436,93263.0,93246.0,0.0966]
[1768813471361,0.0023589,93264.0,93250.0,0.010729]
[1768813471658,0.0023589,93264.0,93246.0,0.0966]
[1768813472365,0.0023589,93264.0,93247.0,1.5]
[1768813472759,0.0023589,93264.0,93248.0,0.0966]
[1768813474563,0.0023589,93264.0,93251.0,0.010729]
[1768813475965,0.00900436,93271.0,93248.0,0.0966]
[1768813476158,0.010727,93270.0,93253.0,0.010729]
[1768813476562,0.01973136,93270.0,93253.0,0.010729]
[1768813477154,0.010727,93268.0,93250.0,0.010729]
[1768813477364,0.00900436,93267.0,93252.0,0.010729]
[1768813478564,0.00900436,93267.0,93254.0,0.010729]
[1768813479068,0.01973036,93276.0,93248.0,0.0966]
[1768813479568,0.00987465,93275.0,93248.0,0.0966]
[1768813479760,0.00987465,93275.0,93259.0,0.010728]
[1768813479961,0.00987465,93275.0,93260.0,0.09656]
[1768813480271,0.00987465,93272.0,93261.0,0.09656]
[1768813480966,0.00987465,93271.0,93256.0,1.2376]
[1768813481270,0.010727,93270.0,93262.0,0.09656]
[1768813481469,0.02060165,93270.0,93262.0,0.09656]
[1768813482269,0.02060165,93270.0,93255.0,0.010729]
[1768813482467,0.02060165,93270.0,93256.0,1.3342]
[1768813482661,0.00987465,93270.0,93257.0,0.010728]
[1768813483068,0.01948782,93269.0,93247.0,1.5]
[1768813483277,0.00987465,93265.0,93248.0,1.33428]
[1768813483569,0.00987465,93265.0,93251.0,0.010729]
[1768813485575,0.00987465,93265.0,93252.0,1.33436]
[1768813486164,0.00987465,93261.0,93250.0,1.2378]
[1768813486366,0.00987465,93261.0,93251.0,0.09656]
[1768813487863,0.00987465,93261.0,93251.0,0.09420021]
[1768813489876,0.00987465,93261.0,93253.0,0.010729]
[1768813490279,0.00987465,93266.0,93253.0,0.010729]
[1768813490479,0.010728,93265.0,93251.0,0.09420021]
[1768813490774,0.02060165,93266.0,93252.0,0.010729]
[1768813491381,0.00987465,93265.0,93252.0,0.010729]
[1768813491577,0.010728,93264.0,93251.0,0.09420021]
[1768813491771,0.00987465,93265.0,93251.0,0.09420021]
[1768813492576,0.00987465,93265.0,93252.0,1.33464]
[1768813492781,0.00915683,93263.0,93252.0,1.33464]
[1768813493684,0.010728,93262.0,93252.0,1.33464]
[1768813494574,0.00915683,93271.0,93253.0,0.00026272]
[1768813494775,0.010726,93276.0,93258.0,0.1436549]